[Event "Early-Titled-Tuesday-Blitz-July-09-2024"]
[Site "Chess.com"]
[Date "2024.07.09"]
[Round "11"]
[White "Nekoo04"]
[Black "anderson2361"]
[Result "1-0"]
[WhiteElo "2396"]
[BlackElo "2207"]
[TimeControl "180+1"]
[EndTime "10:06:26 PDT"]
[Termination "Nekoo04 won by resignation"]

1. Nf3 {[%clk 0:03:00.9]} 1... c5 {[%clk 0:02:56.5]} 2. g3 {[%clk 0:03:01.5]}
2... g6 {[%clk 0:02:56.1]} 3. Bg2 {[%clk 0:03:01.7]} 3... Bg7 {[%clk 0:02:56.6]}
4. O-O {[%clk 0:03:02]} 4... Nc6 {[%clk 0:02:57]} 5. c4 {[%clk 0:03:01.8]} 5...
Nf6 {[%clk 0:02:55.2]} 6. Nc3 {[%clk 0:03:02.1]} 6... O-O {[%clk 0:02:52.9]} 7.
d4 {[%clk 0:03:02.8]} 7... cxd4 {[%clk 0:02:52.5]} 8. Nxd4 {[%clk 0:03:03.7]}
8... Qc7 {[%clk 0:02:52.4]} 9. Bf4 {[%clk 0:02:58.3]} 9... d6 {[%clk 0:02:42.8]}
10. c5 {[%clk 0:02:40.2]} 10... e5 {[%clk 0:02:40.8]} 11. cxd6 {[%clk
0:02:36.2]} 11... Qxd6 {[%clk 0:02:41.7]} 12. Nxc6 {[%clk 0:02:35.6]} 12... Qxd1
{[%clk 0:02:29.9]} 13. Ne7+ {[%clk 0:02:27.9]} 13... Kh8 {[%clk 0:02:29]} 14.
Rfxd1 {[%clk 0:02:27.8]} 14... exf4 {[%clk 0:02:27.4]} 15. gxf4 {[%clk
0:02:28.7]} 15... Be6 {[%clk 0:02:14.1]} 16. Rab1 {[%clk 0:02:18.3]} 16... Rae8
{[%clk 0:02:11.1]} 17. Ned5 {[%clk 0:02:16.9]} 17... Nxd5 {[%clk 0:02:09.7]} 18.
Bxd5 {[%clk 0:02:14]} 18... Bxd5 {[%clk 0:02:08.2]} 19. Rxd5 {[%clk 0:02:14.4]}
19... Bxc3 {[%clk 0:02:06.7]} 20. bxc3 {[%clk 0:02:15.3]} 20... Rxe2 {[%clk
0:02:07.1]} 21. Rxb7 {[%clk 0:02:15.6]} 21... Rxa2 {[%clk 0:02:07.7]} 22. Rdd7
{[%clk 0:02:14.8]} 22... Ra3 {[%clk 0:02:04.8]} 23. Rxf7 {[%clk 0:02:02.5]}
23... Rxf7 {[%clk 0:02:03.7]} 24. Rxf7 {[%clk 0:02:03.4]} 24... Rxc3 {[%clk
0:02:02.8]} 25. Rxa7 {[%clk 0:02:02.6]} 25... Rf3 {[%clk 0:02:03.4]} 26. Ra4
{[%clk 0:01:57.8]} 26... Kg7 {[%clk 0:02:03.7]} 27. Kg2 {[%clk 0:01:58.1]} 27...
Rb3 {[%clk 0:02:03.7]} 28. Ra6 {[%clk 0:01:55.1]} 28... Rb5 {[%clk 0:02:01.3]}
29. Kg3 {[%clk 0:01:54.5]} 29... Kh6 {[%clk 0:01:59.8]} 30. f3 {[%clk
0:01:51.6]} 30... Rf5 {[%clk 0:01:58.7]} 31. Re6 {[%clk 0:01:48]} 31... Rb5
{[%clk 0:01:50]} 32. Kg4 {[%clk 0:01:42]} 32... Rb4 {[%clk 0:01:45.5]} 33. h4
{[%clk 0:01:40.2]} 33... Kg7 {[%clk 0:01:44.4]} 34. Re4 {[%clk 0:01:33.8]} 34...
Rb1 {[%clk 0:01:43.4]} 35. f5 {[%clk 0:01:32.6]} 35... Rg1+ {[%clk 0:01:40.2]}
36. Kf4 {[%clk 0:01:32.2]} 36... Rh1 {[%clk 0:01:40.4]} 37. Ke5 {[%clk 0:01:29]}
37... Rf1 {[%clk 0:01:35.3]} 38. fxg6 {[%clk 0:00:57.1]} 38... Rxf3 {[%clk
0:01:32.5]} 39. gxh7 {[%clk 0:00:54.7]} 39... Kxh7 {[%clk 0:01:33.4]} 40. Rg4
{[%clk 0:00:49.1]} 40... Re3+ {[%clk 0:01:32.3]} 41. Kf5 {[%clk 0:00:49]} 41...
Rf3+ {[%clk 0:01:32.3]} 42. Kg5 {[%clk 0:00:48.4]} 42... Ra3 {[%clk 0:01:33]}
43. Kh5 {[%clk 0:00:47.6]} 43... Ra5+ {[%clk 0:01:33.5]} 44. Rg5 {[%clk
0:00:47.9]} 44... Ra4 {[%clk 0:01:33.6]} 45. Rb5 {[%clk 0:00:46.5]} 45... Ra7
{[%clk 0:01:32.1]} 46. Kg5 {[%clk 0:00:46.3]} 46... Rg7+ {[%clk 0:01:32.5]} 47.
Kh5 {[%clk 0:00:46.3]} 47... Ra7 {[%clk 0:01:33.2]} 48. Rc5 {[%clk 0:00:41.9]}
48... Rb7 {[%clk 0:01:33.2]} 49. Kg4 {[%clk 0:00:40.1]} 49... Rg7+ {[%clk
0:01:33.1]} 50. Kf5 {[%clk 0:00:40.6]} 50... Rf7+ {[%clk 0:01:32.9]} 51. Ke6
{[%clk 0:00:40.3]} 51... Rf4 {[%clk 0:01:32.9]} 52. h5 {[%clk 0:00:39.9]} 52...
Rh4 {[%clk 0:01:32.9]} 53. Kf6 {[%clk 0:00:36.5]} 53... Kh6 {[%clk 0:01:27.8]}
54. Rc8 {[%clk 0:00:35.3]} 54... Kxh5 {[%clk 0:01:28.3]} 55. Kf5 {[%clk
0:00:34.3]} 1-0

[Event "Early-Titled-Tuesday-Blitz-July-09-2024"]
[Site "Chess.com"]
[Date "2024.07.09"]
[Round "11"]
[White "DanylaBagrov"]
[Black "Kildepiotr"]
[Result "1-0"]
[WhiteElo "2609"]
[BlackElo "2695"]
[TimeControl "180+1"]
[EndTime "10:06:28 PDT"]
[Termination "DanylaBagrov won by resignation"]

1. e4 {[%clk 0:03:00.9]} 1... g6 {[%clk 0:02:56.1]} 2. d4 {[%clk 0:03:00]} 2...
Bg7 {[%clk 0:02:56.6]} 3. Nc3 {[%clk 0:03:00.2]} 3... c6 {[%clk 0:02:57.2]} 4.
h4 {[%clk 0:02:57.1]} 4... h5 {[%clk 0:02:56.7]} 5. Nf3 {[%clk 0:02:55.5]} 5...
d6 {[%clk 0:02:57]} 6. a4 {[%clk 0:02:52.5]} 6... Bg4 {[%clk 0:02:55.9]} 7. Be2
{[%clk 0:02:50.7]} 7... Nd7 {[%clk 0:02:55.8]} 8. Be3 {[%clk 0:02:48.8]} 8... e5
{[%clk 0:02:54.9]} 9. d5 {[%clk 0:02:47]} 9... Qc8 {[%clk 0:02:53.9]} 10. dxc6
{[%clk 0:02:44]} 10... bxc6 {[%clk 0:02:47]} 11. Qxd6 {[%clk 0:02:41.6]} 11...
Bf8 {[%clk 0:02:46.8]} 12. Qd2 {[%clk 0:02:35.8]} 12... Bb4 {[%clk 0:02:45.2]}
13. Ng5 {[%clk 0:02:23.9]} 13... Bxe2 {[%clk 0:02:40.9]} 14. Qxe2 {[%clk
0:02:24.8]} 14... Ngf6 {[%clk 0:02:33.7]} 15. Qc4 {[%clk 0:02:13.8]} 15... Bxc3+
{[%clk 0:02:33.7]} 16. Qxc3 {[%clk 0:02:10.7]} 16... Qa6 {[%clk 0:02:33.1]} 17.
Bc5 {[%clk 0:01:54.1]} 17... Rb8 {[%clk 0:02:25.9]} 18. Bd6 {[%clk 0:01:34.9]}
18... Rb5 {[%clk 0:01:44.4]} 19. b4 {[%clk 0:01:09.7]} 19... c5 {[%clk
0:01:25.2]} 20. axb5 {[%clk 0:01:01.4]} 20... Qxd6 {[%clk 0:01:24.9]} 21. bxc5
{[%clk 0:00:53.7]} 21... Nxc5 {[%clk 0:01:22.9]} 22. Rxa7 {[%clk 0:00:40.3]}
22... O-O {[%clk 0:01:20.8]} 23. Qc4 {[%clk 0:00:38.3]} 23... Ncd7 {[%clk
0:01:04.8]} 24. O-O {[%clk 0:00:36.8]} 24... Qb6 {[%clk 0:01:03.7]} 25. Rc7
{[%clk 0:00:32]} 25... Qd6 {[%clk 0:00:56.3]} 26. Rc6 {[%clk 0:00:28.1]} 26...
Qd2 {[%clk 0:00:55.6]} 27. Rc8 {[%clk 0:00:22]} 27... Rxc8 {[%clk 0:00:44.5]}
28. Qxc8+ {[%clk 0:00:21.3]} 28... Kg7 {[%clk 0:00:44.8]} 29. Qc4 {[%clk
0:00:20.1]} 29... Qf4 {[%clk 0:00:39.9]} 30. Qxf7+ {[%clk 0:00:18.6]} 30... Kh6
{[%clk 0:00:40.5]} 31. Ne6 {[%clk 0:00:12.7]} 1-0

[Event "Early-Titled-Tuesday-Blitz-July-09-2024"]
[Site "Chess.com"]
[Date "2024.07.09"]
[Round "11"]
[White "ozates"]
[Black "IMGC"]
[Result "1/2-1/2"]
[WhiteElo "2620"]
[BlackElo "2483"]
[TimeControl "180+1"]
[EndTime "10:06:33 PDT"]
[Termination "Game drawn by repetition"]

1. e4 {[%clk 0:02:55.9]} 1... b6 {[%clk 0:03:00.2]} 2. d4 {[%clk 0:02:55.6]}
2... Bb7 {[%clk 0:03:00.8]} 3. Bd3 {[%clk 0:02:50.3]} 3... e6 {[%clk 0:03:01.1]}
4. Nf3 {[%clk 0:02:47.8]} 4... c5 {[%clk 0:02:52.6]} 5. Nc3 {[%clk 0:02:41.8]}
5... cxd4 {[%clk 0:02:52.4]} 6. Nxd4 {[%clk 0:02:42.7]} 6... a6 {[%clk
0:02:51.9]} 7. O-O {[%clk 0:02:42.6]} 7... Qc7 {[%clk 0:02:50.7]} 8. f4 {[%clk
0:02:41.8]} 8... Bc5 {[%clk 0:02:44.8]} 9. Be3 {[%clk 0:02:41.5]} 9... Nc6
{[%clk 0:02:44.5]} 10. Be2 {[%clk 0:02:41.4]} 10... Nge7 {[%clk 0:02:27.1]} 11.
Kh1 {[%clk 0:02:40.9]} 11... O-O {[%clk 0:02:15.3]} 12. Bg1 {[%clk 0:02:34.1]}
12... Nxd4 {[%clk 0:02:06.2]} 13. Bxd4 {[%clk 0:02:33.3]} 13... Bxd4 {[%clk
0:01:57.2]} 14. Qxd4 {[%clk 0:02:34.2]} 14... b5 {[%clk 0:01:57.8]} 15. f5
{[%clk 0:02:31.4]} 15... Nc6 {[%clk 0:01:56]} 16. Qe3 {[%clk 0:02:29.8]} 16...
Qe5 {[%clk 0:01:53.6]} 17. f6 {[%clk 0:02:29.2]} 17... gxf6 {[%clk 0:01:47.2]}
18. Qh6 {[%clk 0:02:26.1]} 18... Kh8 {[%clk 0:01:45.4]} 19. Rxf6 {[%clk
0:02:26]} 19... Ne7 {[%clk 0:01:33.1]} 20. Raf1 {[%clk 0:02:24.2]} 20... Ng8
{[%clk 0:01:32]} 21. Qh4 {[%clk 0:01:58.5]} 21... Nxf6 {[%clk 0:01:30.8]} 22.
Rxf6 {[%clk 0:01:59.4]} 22... b4 {[%clk 0:01:30.2]} 23. Nd1 {[%clk 0:01:57.7]}
23... Qxe4 {[%clk 0:01:22.9]} 24. Qf2 {[%clk 0:01:54.3]} 24... Kg7 {[%clk
0:00:43.7]} 25. Rf4 {[%clk 0:01:46.8]} 25... Qe5 {[%clk 0:00:43.9]} 26. Ne3
{[%clk 0:01:44.7]} 26... f5 {[%clk 0:00:41.9]} 27. Nc4 {[%clk 0:01:44.6]} 27...
Qc7 {[%clk 0:00:39.1]} 28. Qd4+ {[%clk 0:01:42.8]} 28... Kg8 {[%clk 0:00:33.8]}
29. Rh4 {[%clk 0:01:41.4]} 29... Be4 {[%clk 0:00:30.4]} 30. Nd6 {[%clk
0:01:32.6]} 30... Qxc2 {[%clk 0:00:21.7]} 31. Rh3 {[%clk 0:00:46.6]} 31... Bxg2+
{[%clk 0:00:17.8]} 32. Kxg2 {[%clk 0:00:47]} 32... Qxe2+ {[%clk 0:00:18.3]} 33.
Kg1 {[%clk 0:00:43.1]} 33... Qe1+ {[%clk 0:00:16]} 34. Kg2 {[%clk 0:00:43.4]}
34... Qe2+ {[%clk 0:00:15.8]} 35. Kg1 {[%clk 0:00:37.8]} 35... Qe1+ {[%clk
0:00:13]} 36. Kg2 {[%clk 0:00:38.1]} 36... Qe2+ {[%clk 0:00:10.5]} 1/2-1/2

[Event "Early-Titled-Tuesday-Blitz-July-09-2024"]
[Site "Chess.com"]
[Date "2024.07.09"]
[Round "11"]
[White "JordanLoyd2020"]
[Black "luggevoila"]
[Result "1-0"]
[WhiteElo "2524"]
[BlackElo "2339"]
[TimeControl "180+1"]
[EndTime "10:06:34 PDT"]
[Termination "JordanLoyd2020 won by resignation"]

1. d4 {[%clk 0:03:00.9]} 1... d5 {[%clk 0:02:58.8]} 2. Nf3 {[%clk 0:02:58.5]}
2... Nf6 {[%clk 0:02:55.1]} 3. Bf4 {[%clk 0:02:58.6]} 3... e6 {[%clk 0:02:54.8]}
4. e3 {[%clk 0:02:58.9]} 4... Bd6 {[%clk 0:02:53.6]} 5. Ne5 {[%clk 0:02:59.3]}
5... c5 {[%clk 0:02:49.5]} 6. Bb5+ {[%clk 0:02:58.1]} 6... Kf8 {[%clk
0:02:30.6]} 7. dxc5 {[%clk 0:02:56.5]} 7... Bxc5 {[%clk 0:02:28.4]} 8. O-O
{[%clk 0:02:55.7]} 8... Nbd7 {[%clk 0:02:24.8]} 9. c4 {[%clk 0:02:53.7]} 9... a6
{[%clk 0:02:18.4]} 10. Ba4 {[%clk 0:02:34.2]} 10... dxc4 {[%clk 0:02:05.2]} 11.
Bxd7 {[%clk 0:02:22.2]} 11... Bxd7 {[%clk 0:02:01.1]} 12. Nxc4 {[%clk
0:02:22.4]} 12... Bb5 {[%clk 0:01:53.2]} 13. Nbd2 {[%clk 0:02:15.4]} 13... Qd3
{[%clk 0:01:45]} 14. b3 {[%clk 0:01:35.5]} 14... Ke7 {[%clk 0:01:41.3]} 15. Qf3
{[%clk 0:01:34.1]} 15... Bc6 {[%clk 0:01:38.2]} 16. Qh3 {[%clk 0:01:25.2]} 16...
Rhd8 {[%clk 0:01:18.2]} 17. Nf3 {[%clk 0:01:07.3]} 17... Qf5 {[%clk 0:01:09.5]}
18. Nfe5 {[%clk 0:00:42.3]} 18... Qxh3 {[%clk 0:01:05.7]} 19. Nxc6+ {[%clk
0:00:40.7]} 19... bxc6 {[%clk 0:01:05]} 20. gxh3 {[%clk 0:00:41.6]} 20... Nd5
{[%clk 0:00:58.2]} 21. Bg3 {[%clk 0:00:40.6]} 21... f6 {[%clk 0:00:52.9]} 22.
Rac1 {[%clk 0:00:37.4]} 22... Bb4 {[%clk 0:00:08.2]} 23. a3 {[%clk 0:00:32.3]}
23... Bc5 {[%clk 0:00:06.8]} 24. b4 {[%clk 0:00:30.6]} 24... Ba7 {[%clk
0:00:05.9]} 25. Na5 {[%clk 0:00:31.1]} 25... c5 {[%clk 0:00:04.4]} 26. Nc6+
{[%clk 0:00:28.4]} 26... Kf7 {[%clk 0:00:04.9]} 27. Nxd8+ {[%clk 0:00:27.6]}
27... Rxd8 {[%clk 0:00:05.5]} 28. bxc5 {[%clk 0:00:28.2]} 28... e5 {[%clk
0:00:05.4]} 29. Rfd1 {[%clk 0:00:27.2]} 1-0

[Event "Early-Titled-Tuesday-Blitz-July-09-2024"]
[Site "Chess.com"]
[Date "2024.07.09"]
[Round "11"]
[White "RobertoJBM"]
[Black "Brown_Bear_MGL"]
[Result "1-0"]
[WhiteElo "2836"]
[BlackElo "2641"]
[TimeControl "180+1"]
[EndTime "10:06:44 PDT"]
[Termination "RobertoJBM won by resignation"]

1. d4 {[%clk 0:03:00.9]} 1... Nf6 {[%clk 0:02:59.3]} 2. Nf3 {[%clk 0:03:00.8]}
2... e6 {[%clk 0:02:58.9]} 3. e3 {[%clk 0:03:01.7]} 3... b6 {[%clk 0:02:56]} 4.
Bd3 {[%clk 0:03:01.6]} 4... Bb7 {[%clk 0:02:54.5]} 5. Qe2 {[%clk 0:03:02]} 5...
c5 {[%clk 0:02:53.8]} 6. c3 {[%clk 0:03:01.4]} 6... Be7 {[%clk 0:02:52.3]} 7.
Nbd2 {[%clk 0:03:01.3]} 7... O-O {[%clk 0:02:52.2]} 8. O-O {[%clk 0:03:01.1]}
8... d6 {[%clk 0:02:52.4]} 9. e4 {[%clk 0:03:01.4]} 9... Nbd7 {[%clk 0:02:52.6]}
10. Re1 {[%clk 0:03:01.5]} 10... cxd4 {[%clk 0:02:46.7]} 11. cxd4 {[%clk
0:03:01.4]} 11... e5 {[%clk 0:02:46.8]} 12. d5 {[%clk 0:02:57.8]} 12... Nc5
{[%clk 0:02:36.2]} 13. Bc4 {[%clk 0:02:58]} 13... a6 {[%clk 0:02:33]} 14. b4
{[%clk 0:02:57.1]} 14... Na4 {[%clk 0:02:30.6]} 15. a3 {[%clk 0:02:47.2]} 15...
b5 {[%clk 0:02:28.7]} 16. Bb3 {[%clk 0:02:43]} 16... Nd7 {[%clk 0:02:17.3]} 17.
Bxa4 {[%clk 0:02:40.4]} 17... bxa4 {[%clk 0:02:18.2]} 18. Nc4 {[%clk 0:02:37.2]}
18... Nb6 {[%clk 0:02:14.7]} 19. Na5 {[%clk 0:02:33.9]} 19... Bc8 {[%clk
0:01:58.5]} 20. Be3 {[%clk 0:02:18.3]} 20... Bd7 {[%clk 0:01:50.7]} 21. Rec1
{[%clk 0:02:17.1]} 21... Bb5 {[%clk 0:01:50.1]} 22. Qd2 {[%clk 0:01:52.9]} 22...
Nd7 {[%clk 0:01:37.2]} 23. Ne1 {[%clk 0:01:34.8]} 23... f5 {[%clk 0:01:28.4]}
24. Nc6 {[%clk 0:01:32.8]} 24... Qe8 {[%clk 0:01:28]} 25. exf5 {[%clk
0:01:23.9]} 25... Rxf5 {[%clk 0:01:26.1]} 26. Nxe7+ {[%clk 0:00:59.7]} 26...
Qxe7 {[%clk 0:01:25.9]} 27. Rc7 {[%clk 0:01:00.3]} 27... Raf8 {[%clk 0:01:25.1]}
28. Rac1 {[%clk 0:00:59.8]} 28... Qh4 {[%clk 0:01:17.8]} 29. f3 {[%clk
0:00:29.9]} 29... Nf6 {[%clk 0:01:16.1]} 30. Ra7 {[%clk 0:00:14.3]} 30... e4
{[%clk 0:01:02.6]} 31. f4 {[%clk 0:00:14.5]} 31... Nxd5 {[%clk 0:00:59.6]} 32.
g3 {[%clk 0:00:13.4]} 32... Qh5 {[%clk 0:00:57.1]} 33. Ng2 {[%clk 0:00:10.7]}
33... Qf3 {[%clk 0:00:54.7]} 34. Bd4 {[%clk 0:00:08]} 34... Nf6 {[%clk
0:00:51.4]} 35. Qe3 {[%clk 0:00:07.2]} 35... Rd5 {[%clk 0:00:45.9]} 36. Bxf6
{[%clk 0:00:07.1]} 36... Qxe3+ {[%clk 0:00:44.8]} 37. Nxe3 {[%clk 0:00:06.9]}
37... Rxf6 {[%clk 0:00:41.4]} 38. Nxd5 {[%clk 0:00:06.9]} 1-0

[Event "Early-Titled-Tuesday-Blitz-July-09-2024"]
[Site "Chess.com"]
[Date "2024.07.09"]
[Round "11"]
[White "krzyzan94"]
[Black "Kotofeyca"]
[Result "1-0"]
[WhiteElo "2758"]
[BlackElo "2508"]
[TimeControl "180+1"]
[EndTime "10:06:44 PDT"]
[Termination "krzyzan94 won on time"]

1. e4 {[%clk 0:02:59.2]} 1... c5 {[%clk 0:02:59.8]} 2. Nf3 {[%clk 0:02:58.7]}
2... d6 {[%clk 0:03:00.3]} 3. d4 {[%clk 0:02:58.9]} 3... cxd4 {[%clk 0:03:01.2]}
4. Nxd4 {[%clk 0:02:59.5]} 4... Nf6 {[%clk 0:03:01.8]} 5. Nc3 {[%clk 0:03:00]}
5... a6 {[%clk 0:03:02.3]} 6. Be2 {[%clk 0:03:00.1]} 6... e5 {[%clk 0:03:02.1]}
7. Nb3 {[%clk 0:03:00.4]} 7... Be7 {[%clk 0:03:01.9]} 8. O-O {[%clk 0:03:01]}
8... O-O {[%clk 0:03:01.9]} 9. Qd3 {[%clk 0:03:01.3]} 9... b5 {[%clk 0:02:52.9]}
10. a4 {[%clk 0:02:59.6]} 10... b4 {[%clk 0:02:52.8]} 11. Nd5 {[%clk 0:02:59.9]}
11... Bb7 {[%clk 0:02:48.3]} 12. Rd1 {[%clk 0:02:46]} 12... Bxd5 {[%clk
0:02:38.2]} 13. exd5 {[%clk 0:02:45.7]} 13... a5 {[%clk 0:02:36.8]} 14. c3
{[%clk 0:02:39.6]} 14... bxc3 {[%clk 0:02:35.4]} 15. Qxc3 {[%clk 0:02:35.1]}
15... Ne4 {[%clk 0:02:07.2]} 16. Qf3 {[%clk 0:02:24]} 16... f5 {[%clk
0:02:05.7]} 17. Bd3 {[%clk 0:02:21.3]} 17... Qb6 {[%clk 0:01:50]} 18. Bxe4
{[%clk 0:02:21.1]} 18... fxe4 {[%clk 0:01:47.1]} 19. Qe3 {[%clk 0:02:21.8]}
19... Qb7 {[%clk 0:01:28.3]} 20. Ra3 {[%clk 0:02:02.3]} 20... Bd8 {[%clk
0:00:54.3]} 21. Qxe4 {[%clk 0:02:00.3]} 21... Bb6 {[%clk 0:00:54.4]} 22. Be3
{[%clk 0:01:59.1]} 22... Na6 {[%clk 0:00:49.9]} 23. h3 {[%clk 0:01:44.6]} 23...
Bxe3 {[%clk 0:00:41.5]} 24. fxe3 {[%clk 0:01:30.6]} 24... Qb6 {[%clk 0:00:35.8]}
25. Rc1 {[%clk 0:01:07.6]} 25... Rf4 {[%clk 0:00:31]} 26. Rc6 {[%clk 0:00:53.5]}
26... Qxc6 {[%clk 0:00:23.8]} 27. exf4 {[%clk 0:00:50.3]} 27... Qb6+ {[%clk
0:00:15.5]} 28. Kh2 {[%clk 0:00:50.3]} 28... Re8 {[%clk 0:00:14.5]} 29. f5
{[%clk 0:00:45.8]} 29... Rc8 {[%clk 0:00:11.9]} 30. f6 {[%clk 0:00:42.5]} 30...
gxf6 {[%clk 0:00:11.3]} 31. Qg4+ {[%clk 0:00:42.7]} 31... Kf7 {[%clk 0:00:08.8]}
32. Qxc8 {[%clk 0:00:43.6]} 32... Qe3 {[%clk 0:00:05.9]} 33. Qe6+ {[%clk
0:00:43.3]} 33... Kg7 {[%clk 0:00:05.4]} 34. Qg4+ {[%clk 0:00:43]} 34... Kh6
{[%clk 0:00:04.6]} 35. Na1 {[%clk 0:00:40.5]} 35... Qd2 {[%clk 0:00:02.5]} 36.
Rg3 {[%clk 0:00:39.5]} 1-0

[Event "Early-Titled-Tuesday-Blitz-July-09-2024"]
[Site "Chess.com"]
[Date "2024.07.09"]
[Round "11"]
[White "gpsji27"]
[Black "GMT4114"]
[Result "0-1"]
[WhiteElo "2342"]
[BlackElo "2000"]
[TimeControl "180+1"]
[EndTime "10:06:44 PDT"]
[Termination "GMT4114 won by resignation"]

1. d4 {[%clk 0:03:00.9]} 1... e6 {[%clk 0:03:00.2]} 2. Nf3 {[%clk 0:03:01.1]}
2... f5 {[%clk 0:03:00.6]} 3. Bg5 {[%clk 0:03:01.2]} 3... Nf6 {[%clk 0:03:00.8]}
4. Nc3 {[%clk 0:03:00.8]} 4... Bb4 {[%clk 0:02:59.8]} 5. Qd3 {[%clk 0:02:55]}
5... b6 {[%clk 0:03:00.3]} 6. Bd2 {[%clk 0:02:51.1]} 6... Bb7 {[%clk 0:03:00]}
7. a3 {[%clk 0:02:48.4]} 7... Bxc3 {[%clk 0:02:54.6]} 8. Bxc3 {[%clk 0:02:49.3]}
8... O-O {[%clk 0:02:53.9]} 9. e3 {[%clk 0:02:47.9]} 9... d6 {[%clk 0:02:45]}
10. O-O-O {[%clk 0:02:47]} 10... Nbd7 {[%clk 0:02:45.1]} 11. Be2 {[%clk
0:02:45.1]} 11... c5 {[%clk 0:02:40.5]} 12. dxc5 {[%clk 0:02:43.8]} 12... d5
{[%clk 0:02:15.7]} 13. cxb6 {[%clk 0:02:40.5]} 13... Nxb6 {[%clk 0:02:15.2]} 14.
Nd4 {[%clk 0:02:33]} 14... Re8 {[%clk 0:02:02.9]} 15. g4 {[%clk 0:02:13]} 15...
fxg4 {[%clk 0:01:49.9]} 16. h3 {[%clk 0:02:08.4]} 16... g3 {[%clk 0:01:48]} 17.
fxg3 {[%clk 0:02:06.8]} 17... Nc4 {[%clk 0:01:47.5]} 18. h4 {[%clk 0:02:00.9]}
18... Ba6 {[%clk 0:01:45.1]} 19. b3 {[%clk 0:01:37.1]} 19... Ne4 {[%clk
0:01:23.4]} 20. Bg4 {[%clk 0:01:30.8]} 20... Qb6 {[%clk 0:01:15.8]} 21. Nxe6
{[%clk 0:01:27.6]} 21... Nxe3 {[%clk 0:00:56.3]} 22. Qd4 {[%clk 0:00:31.3]}
22... Qxd4 {[%clk 0:00:55.1]} 23. Bxd4 {[%clk 0:00:32.2]} 23... Nxg4 {[%clk
0:00:50.7]} 24. Nxg7 {[%clk 0:00:23.9]} 24... Red8 {[%clk 0:00:23.3]} 25. Ne6
{[%clk 0:00:19.6]} 25... Rd6 {[%clk 0:00:20.5]} 26. Nf4 {[%clk 0:00:13.7]} 26...
Nef2 {[%clk 0:00:20.6]} 27. Bxf2 {[%clk 0:00:12.5]} 27... Nxf2 {[%clk
0:00:21.5]} 28. Nxd5 {[%clk 0:00:11.1]} 28... Rxd5 {[%clk 0:00:15.4]} 29. Rxd5
{[%clk 0:00:10.5]} 29... Nxh1 {[%clk 0:00:15.5]} 0-1

[Event "Early-Titled-Tuesday-Blitz-July-09-2024"]
[Site "Chess.com"]
[Date "2024.07.09"]
[Round "11"]
[White "Matols"]
[Black "Smiechu"]
[Result "0-1"]
[WhiteElo "2365"]
[BlackElo "2452"]
[TimeControl "180+1"]
[EndTime "10:06:46 PDT"]
[Termination "Smiechu won by resignation"]

1. d4 {[%clk 0:03:00.9]} 1... Nf6 {[%clk 0:02:57]} 2. c4 {[%clk 0:03:01.1]} 2...
c5 {[%clk 0:02:56.7]} 3. d5 {[%clk 0:03:00.5]} 3... e6 {[%clk 0:02:57.2]} 4. Nc3
{[%clk 0:02:59.8]} 4... exd5 {[%clk 0:02:58.1]} 5. cxd5 {[%clk 0:03:00.3]} 5...
d6 {[%clk 0:02:58.8]} 6. e4 {[%clk 0:03:00.5]} 6... g6 {[%clk 0:02:59.4]} 7. h3
{[%clk 0:03:01.1]} 7... Bg7 {[%clk 0:02:59.9]} 8. Nf3 {[%clk 0:03:01.8]} 8...
O-O {[%clk 0:03:00.4]} 9. Bd3 {[%clk 0:03:02.2]} 9... b5 {[%clk 0:03:00.3]} 10.
Nxb5 {[%clk 0:03:02.8]} 10... Re8 {[%clk 0:02:58.1]} 11. O-O {[%clk 0:02:57.9]}
11... Nxe4 {[%clk 0:02:58]} 12. Bf4 {[%clk 0:02:40.9]} 12... a6 {[%clk
0:02:55.2]} 13. Nc3 {[%clk 0:02:24.7]} 13... Nxc3 {[%clk 0:02:54.2]} 14. bxc3
{[%clk 0:02:25.6]} 14... Bxc3 {[%clk 0:02:53.1]} 15. Qc2 {[%clk 0:02:18.9]}
15... Bg7 {[%clk 0:02:52.8]} 16. Rfe1 {[%clk 0:02:09.9]} 16... Rxe1+ {[%clk
0:02:51.8]} 17. Rxe1 {[%clk 0:02:10.8]} 17... Nd7 {[%clk 0:02:49.8]} 18. Bxd6
{[%clk 0:02:09]} 18... Bb7 {[%clk 0:02:48]} 19. Be7 {[%clk 0:02:00.8]} 19... Qa5
{[%clk 0:02:44.6]} 20. Bc4 {[%clk 0:01:52.7]} 20... Ne5 {[%clk 0:02:39.4]} 21.
Rb1 {[%clk 0:01:40.3]} 21... Nxf3+ {[%clk 0:02:31.7]} 22. gxf3 {[%clk
0:01:41.2]} 22... Qc7 {[%clk 0:02:31.6]} 23. d6 {[%clk 0:01:26.8]} 23... Qc6
{[%clk 0:02:31.6]} 24. Rb3 {[%clk 0:01:24.9]} 24... Bf8 {[%clk 0:02:22]} 25. Qe4
{[%clk 0:00:39.1]} 25... Qxe4 {[%clk 0:02:15.6]} 26. fxe4 {[%clk 0:00:40]} 26...
Bxe4 {[%clk 0:02:13.1]} 27. Re3 {[%clk 0:00:32]} 27... Bxe7 {[%clk 0:02:04]} 28.
dxe7 {[%clk 0:00:28.3]} 28... Bc6 {[%clk 0:02:03.2]} 29. f4 {[%clk 0:00:21.2]}
29... Kg7 {[%clk 0:02:01.3]} 30. Kf2 {[%clk 0:00:19.7]} 30... Re8 {[%clk
0:01:57.8]} 31. Bxa6 {[%clk 0:00:18.9]} 31... Kf6 {[%clk 0:01:56.4]} 32. Bc4
{[%clk 0:00:18.7]} 32... Rxe7 {[%clk 0:01:55]} 33. Rxe7 {[%clk 0:00:19.4]} 33...
Kxe7 {[%clk 0:01:55.8]} 34. Ke3 {[%clk 0:00:18.9]} 34... f6 {[%clk 0:01:55.1]}
35. Bb3 {[%clk 0:00:17.9]} 35... Kd6 {[%clk 0:01:53.2]} 36. a4 {[%clk
0:00:17.7]} 36... h6 {[%clk 0:01:40.5]} 37. a5 {[%clk 0:00:17.1]} 37... Bb5
{[%clk 0:01:40]} 38. h4 {[%clk 0:00:16.8]} 38... c4 {[%clk 0:01:39.1]} 39. Bc2
{[%clk 0:00:16.2]} 39... Kc5 {[%clk 0:01:36.6]} 40. Bxg6 {[%clk 0:00:15.4]}
40... Kb4 {[%clk 0:01:36.7]} 41. a6 {[%clk 0:00:14.3]} 41... Bxa6 {[%clk
0:01:36.5]} 42. Be4 {[%clk 0:00:13.4]} 42... c3 {[%clk 0:01:33.7]} 43. Bc2
{[%clk 0:00:12.5]} 43... Bc4 {[%clk 0:01:30.7]} 44. Kd4 {[%clk 0:00:12.1]} 44...
Bb3 {[%clk 0:01:30.5]} 45. Bf5 {[%clk 0:00:11.3]} 45... c2 {[%clk 0:01:29.4]}
46. Bxc2 {[%clk 0:00:11.4]} 46... Bxc2 {[%clk 0:01:30.2]} 47. Kd5 {[%clk
0:00:11.8]} 47... Bf5 {[%clk 0:01:23]} 48. Kd6 {[%clk 0:00:11.6]} 48... Bg4
{[%clk 0:01:23]} 49. f5 {[%clk 0:00:10.8]} 49... Bxf5 {[%clk 0:01:22.6]} 50. Ke7
{[%clk 0:00:11.4]} 50... Bg4 {[%clk 0:01:22.1]} 51. Kxf6 {[%clk 0:00:11.6]}
51... h5 {[%clk 0:01:22.7]} 52. Kg5 {[%clk 0:00:10.3]} 52... Kc4 {[%clk
0:01:23.1]} 53. Kf4 {[%clk 0:00:11]} 53... Kd4 {[%clk 0:01:23.6]} 54. Kg3 {[%clk
0:00:11.7]} 54... Ke3 {[%clk 0:01:24.1]} 55. Kh2 {[%clk 0:00:11.9]} 55... Kf3
{[%clk 0:01:24.7]} 56. Kh1 {[%clk 0:00:11.9]} 56... Kg3 {[%clk 0:01:25.6]} 57.
Kg1 {[%clk 0:00:12.2]} 57... Kxh4 {[%clk 0:01:26.5]} 58. Kh2 {[%clk 0:00:12.7]}
58... Kg5 {[%clk 0:01:26.7]} 59. Kg3 {[%clk 0:00:13.1]} 59... h4+ {[%clk
0:01:27]} 60. Kh2 {[%clk 0:00:13.7]} 60... Kf4 {[%clk 0:01:27.9]} 61. Kg2 {[%clk
0:00:13.9]} 61... h3+ {[%clk 0:01:28]} 62. Kh2 {[%clk 0:00:14.6]} 62... Kf3
{[%clk 0:01:28.5]} 63. Kh1 {[%clk 0:00:14.7]} 63... Kg3 {[%clk 0:01:29]} 64. Kg1
{[%clk 0:00:15.4]} 64... h2+ {[%clk 0:01:29.6]} 0-1